fUSD/lending_fUSD_20250916
["ID","MTS","AMOUNT","RATE_DAILY","PERIOD"]
[385773091,1758030688352,-400.0,0.00030684,6]
[385773092,1758030688366,-400.0,0.00030684,6]
[385773093,1758030688375,-402.43111031,0.00030684,6]
[385773094,1758030688385,-400.0,0.00030684,6]
[385773095,1758030688394,-400.0,0.00030684,6]
[385773096,1758030688403,-400.0,0.00030684,6]
[385773097,1758030688412,-400.0,0.00030684,6]
[385773098,1758030688421,-524.44,0.00030684,6]
[385773099,1758030688430,-400.0,0.00030684,6]
[385773100,1758030688440,-400.0,0.00030684,6]
[385773101,1758030688449,-576.52,0.00030684,6]
[385773102,1758030688458,-400.0,0.00030684,6]
[385773103,1758030688467,-400.0,0.00030684,6]
[385773104,1758030688477,-577.99,0.00030684,6]
[385773105,1758030688486,-400.0,0.00030684,6]
[385773106,1758030688495,-400.0,0.00030684,6]
[385773107,1758030688505,-400.0,0.00030684,6]
[385773108,1758030688514,-400.0,0.00030684,6]
[385773109,1758030688523,-406.072585,0.00030684,6]
[385773110,1758030688532,-400.0,0.00030684,6]
[385773111,1758030688542,-400.0,0.00030684,6]
[385773112,1758030688551,-400.0,0.00030684,6]
[385773113,1758030688560,-400.0,0.00030684,6]
[385773114,1758030688569,-400.0,0.00030684,6]
[385773115,1758030688578,-638.76,0.00030684,6]
[385773116,1758030688588,-400.0,0.00030684,6]
[385773117,1758030688597,-400.0,0.00030684,6]
[385773118,1758030688610,-841.75,0.00030684,6]
[385773119,1758030688619,-780.88,0.00030684,6]
[385773120,1758030688628,-400.0,0.00030684,6]
[385773121,1758030688637,-684.32,0.00030684,6]
[385773122,1758030688647,-422.77,0.00030684,6]
[385773123,1758030688656,-400.0,0.00030684,6]
[385773124,1758030688665,-400.0,0.00030684,6]
[385773125,1758030688674,-331.26663268,0.00030684,6]
[385773126,1758030688683,-400.0,0.00030684,6]
[385773127,1758030688693,-400.0,0.00030684,6]
[385773128,1758030688702,-400.0,0.00030684,6]
[385773129,1758030688712,-474.1962569,0.00030684,6]
[385773130,1758030689497,-12.6037431,0.00030684,6]
[385773131,1758030689506,-400.0,0.00030684,6]
[385773132,1758030689516,-400.0,0.00030684,6]
[385773133,1758030689525,-464.21,0.00030684,6]
[385773134,1758030689535,-400.0,0.00030684,6]
[385773135,1758030689544,-400.0,0.00030684,6]
[385773136,1758030689553,-400.0,0.00030684,6]
[385773137,1758030689562,-401.73128805,0.00030684,6]
[385773138,1758030689571,-400.0,0.00030684,6]
[385773139,1758030689581,-400.0,0.00030684,6]
[385773140,1758030689590,-400.0,0.00030684,6]
[385773141,1758030689599,-400.0,0.00030684,6]
[385773142,1758030689610,-400.0,0.00030684,6]
[385773143,1758030689620,-476.54,0.00030684,6]
[385773144,1758030689629,-400.0,0.00030684,6]
[385773145,1758030689639,-400.0,0.00030684,6]
[385773146,1758030689648,-455.66,0.00030684,6]
[385773147,1758030689658,-830.89,0.00030684,6]
[385773148,1758030689667,-550.51,0.00030684,6]
[385773149,1758030689677,-400.0,0.00030684,6]
[385773150,1758030689686,-640.4,0.00030684,6]
[385773151,1758030689695,-626.75,0.00030684,6]
[385773152,1758030689704,-400.0,0.00030684,6]
[385773153,1758030689713,-400.0,0.00030684,6]
[385773154,1758030689723,-400.0,0.00030684,6]
[385773155,1758030689733,-821.61,0.00030684,6]
[385773156,1758030689742,-400.0,0.00030684,6]
[385773157,1758030689752,-400.0,0.00030684,6]
[385773158,1758030689761,-404.86940756,0.00030684,6]
[385773159,1758030689771,-400.0,0.00030684,6]
[385773160,1758030689780,-403.10782262,0.00030684,6]
[385773161,1758030689790,-400.0,0.00030684,6]
[385773162,1758030689799,-400.0,0.00030684,6]
[385773163,1758030689809,-520.39,0.00030684,6]
[385773164,1758030689818,-400.0,0.00030684,6]
[385773165,1758030689828,-720.82,0.00030684,6]
[385773166,1758030689837,-640.02,0.00030684,6]
[385773167,1758030689846,-401.91140005,0.00030684,6]
[385773168,1758030689857,-400.0,0.00030684,6]
[385773169,1758030689866,-400.0,0.00030684,6]
[385773170,1758030689876,-400.0,0.00030684,6]
[385773171,1758030689885,-540.69,0.00030684,6]
[385773172,1758030689895,-402.83665079,0.00030684,6]
[385773173,1758030689904,-400.0,0.00030684,6]
[385773174,1758030689914,-400.0,0.00030684,6]
[385773175,1758030689924,-498.26,0.00030684,6]
[385773176,1758030689933,-400.0,0.00030684,6]
[385773177,1758030689943,-492.28,0.00030684,6]
[385773178,1758030689952,-400.0,0.00030684,6]
[385773179,1758030689962,-400.0,0.00030684,6]
[385773180,1758030689972,-685.7,0.00030684,6]
[385773181,1758030689985,-400.0,0.00030684,6]
[385773182,1758030689996,-400.0,0.00030684,6]
[385773183,1758030690005,-400.0,0.00030684,6]
[385773184,1758030690015,-479.18,0.00030684,6]
[385773185,1758030690024,-400.0,0.00030684,6]
[385773186,1758030690034,-627.94,0.00030684,6]
[385773187,1758030690043,-400.0,0.00030684,6]
[385773188,1758030690052,-400.0,0.00030684,6]
[385773189,1758030690063,-400.0,0.00030684,6]
[385773190,1758030690072,-401.67842308,0.00030684,6]
[385773191,1758030690082,-400.0,0.00030684,6]
[385773192,1758030690092,-400.0,0.00030684,6]
[385773193,1758030690101,-400.0,0.00030684,6]
[385773194,1758030690112,-400.0,0.00030684,6]
[385773195,1758030690122,-1172.0,0.00030684,6]
[385773196,1758030690131,-567.99,0.00030684,6]
[385773197,1758030690140,-400.0,0.00030684,6]
[385773198,1758030690150,-400.0,0.00030684,6]
[385773199,1758030690160,-702.98,0.00030684,6]
[385773200,1758030690169,-520.82,0.00030684,6]
[385773201,1758030690178,-400.0,0.00030684,6]
[385773202,1758030690187,-400.0,0.00030684,6]
[385773203,1758030690196,-400.0,0.00030684,6]
[385773204,1758030690206,-400.0,0.00030684,6]
[385773205,1758030690215,-400.0,0.00030684,6]
[385773206,1758030690224,-508.06,0.00030684,6]
[385773207,1758030690234,-869.12,0.00030684,6]
[385773208,1758030690243,-400.0,0.00030684,6]
[385773209,1758030690252,-400.0,0.00030684,6]
[385773210,1758030690261,-391.76715502,0.00030684,6]
[385773211,1758030690271,-497.39,0.00030684,6]
[385773212,1758030690280,-400.0,0.00030684,6]
[385773213,1758030690289,-400.0,0.00030684,6]
[385773214,1758030690298,-400.0,0.00030684,6]
[385773215,1758030690307,-1158.73,0.00030684,6]
[385773216,1758030690316,-759.52,0.00030684,6]
[385773217,1758030690325,-722.61,0.00030684,6]
[385773218,1758030690334,-400.0,0.00030684,6]
[385773219,1758030690344,-400.0,0.00030684,6]
[385773220,1758030690354,-400.0,0.00030684,6]
[385773221,1758030690365,-633.25,0.00030684,6]
[385773222,1758030690374,-597.83,0.00030684,6]
[385773223,1758030690384,-400.0,0.00030684,6]
[385773224,1758030690394,-400.0,0.00030684,6]
[385773225,1758030690403,-400.0,0.00030684,6]
[385773226,1758030690413,-575.67,0.00030684,6]
[385773227,1758030690422,-400.0,0.00030684,6]
[385773228,1758030690431,-400.0,0.00030684,6]
[385773229,1758030690440,-400.0,0.00030684,6]
[385773230,1758030690450,-400.0,0.00030684,6]
[385773231,1758030690460,-400.0,0.00030684,6]
[385773232,1758030690469,-898.12,0.00030684,6]
[385773233,1758030690479,-527.33,0.00030684,6]
[385773234,1758030690488,-400.0,0.00030684,6]
[385773235,1758030690498,-400.0,0.00030684,6]
[385773236,1758030690507,-448.62,0.00030684,6]
[385773237,1758030690516,-400.0,0.00030684,6]
[385773238,1758030690526,-400.0,0.00030684,6]
[385773239,1758030690535,-400.0,0.00030684,6]
[385773240,1758030690545,-400.0,0.00030684,6]
[385773241,1758030690554,-400.0,0.00030684,6]
[385773242,1758030690564,-400.0,0.00030684,6]
[385773243,1758030690573,-400.0,0.00030684,6]
[385773244,1758030690583,-400.0,0.00030684,6]
[385773245,1758030690592,-400.0,0.00030684,6]
[385773246,1758030690602,-400.0,0.00030684,6]
[385773247,1758030690614,-409.24086872,0.00030684,6]
[385773248,1758030690624,-748.16,0.00030684,6]
[385773249,1758030690634,-400.0,0.00030684,6]
[385773250,1758030690644,-383.95143963,0.00030684,6]
[385773251,1758030690654,-530.99,0.00030684,6]
[385773252,1758030690664,-400.0,0.00030684,6]
[385773253,1758030690674,-750.04,0.00030684,6]
[385773254,1758030690683,-400.0,0.00030684,6]
[385773255,1758030690693,-400.0,0.00030684,6]
[385773256,1758030690702,-400.0,0.00030684,6]
[385773257,1758030690712,-400.0,0.00030684,6]
[385773258,1758030690723,-400.0,0.00030684,6]
[385773259,1758030690733,-400.0,0.00030684,6]
[385773260,1758030690743,-400.75426371,0.00030684,6]
[385773261,1758030690752,-400.0,0.00030684,6]
[385773262,1758030690762,-737.24,0.00030684,6]
[385773263,1758030690772,-614.84,0.00030684,6]
[385773264,1758030690786,-2282.11,0.00030684,6]
[385773265,1758030690796,-600.77,0.00030684,6]
[385773266,1758030690807,-400.0,0.00030684,6]
[385773267,1758030690817,-400.0,0.00030684,6]
[385773268,1758030690827,-400.0,0.00030684,6]
[385773269,1758030690836,-404.34014095,0.00030684,6]
[385773270,1758030690847,-400.0,0.00030684,6]
[385773271,1758030690857,-400.0,0.00030684,6]
[385773272,1758030690866,-400.0,0.00030684,6]
[385773273,1758030690875,-515.22,0.00030684,6]
[385773274,1758030690885,-444.61205247,0.00030684,6]
[385773275,1758030690894,-400.0,0.00030684,6]
[385773276,1758030690904,-400.0,0.00030684,6]
[385773277,1758030690913,-400.0,0.00030684,6]
[385773278,1758030690923,-400.0,0.00030684,6]
[385773279,1758030690932,-400.0,0.00030684,6]
[385773280,1758030690942,-400.0,0.00030684,6]
[385773281,1758030690952,-400.0,0.00030684,6]
[385773282,1758030690961,-400.0,0.00030684,6]
[385773283,1758030690971,-593.79,0.00030684,6]
[385773284,1758030690981,-400.0,0.00030684,6]
[385773285,1758030690995,-400.0,0.00030684,6]
[385773286,1758030691005,-2951.48,0.00030684,6]
[385773287,1758030691015,-400.0,0.00030684,6]
[385773288,1758030691024,-400.0,0.00030684,6]
[385773289,1758030691035,-400.0,0.00030684,6]
[385773290,1758030691045,-815.15,0.00030684,6]
[385773291,1758030691054,-402.10019975,0.00030684,6]
[385773292,1758030691065,-400.0,0.00030684,6]
[385773293,1758030691075,-400.0,0.00030684,6]
[385773294,1758030691084,-400.0,0.00030684,6]
[385773295,1758030691094,-351.36327942,0.00030684,6]
[385773296,1758030691103,-1462.29,0.00030684,6]
[385773297,1758030691113,-213.91878393,0.00030684,6]
[385773298,1758030691123,-400.0,0.00030684,6]
[385773299,1758030691133,-400.0,0.00030684,6]
[385773300,1758030691142,-400.0,0.00030684,6]
[385773301,1758030691151,-1048.6,0.00030684,6]
[385773302,1758030691162,-400.0,0.00030684,6]
[385773303,1758030691172,-400.0,0.00030684,6]
[385773304,1758030691181,-400.0,0.00030684,6]
[385773305,1758030691190,-601.67,0.00030684,6]
[385773306,1758030691199,-607.59,0.00030684,6]
[385773307,1758030691209,-764.89,0.00030684,6]
[385773308,1758030691218,-400.0,0.00030684,6]
[385773309,1758030691227,-770.51,0.00030684,6]
[385773310,1758030691236,-400.0,0.00030684,6]
[385773311,1758030691246,-400.0,0.00030684,6]
[385773312,1758030691255,-400.0,0.00030684,6]
[385773313,1758030691265,-400.0,0.00030684,6]
[385773314,1758030691274,-400.0,0.00030684,6]
[385773315,1758030691283,-775.81,0.00030684,6]
[385773316,1758030691293,-400.0,0.00030684,6]
[385773317,1758030691302,-400.0,0.00030684,6]
[385773318,1758030691312,-400.0,0.00030684,6]
[385773319,1758030691321,-512.69,0.00030684,6]
[385773320,1758030691331,-400.0,0.00030684,6]
[385773321,1758030691341,-602.4,0.00030684,6]
[385773322,1758030691351,-413.37463087,0.00030684,6]
[385773323,1758030691363,-400.0,0.00030684,6]
[385773324,1758030691373,-2355.88,0.00030684,6]
[385773325,1758030691382,-867.75,0.00030684,6]
[385773326,1758030691392,-400.0,0.00030684,6]
[385773327,1758030691402,-400.0,0.00030684,6]
[385773328,1758030691411,-400.0,0.00030684,6]
[385773329,1758030691420,-539.87,0.00030684,6]
[385773330,1758030691430,-400.0,0.00030684,6]
[385773331,1758030691440,-400.00005122,0.00030684,6]
[385773332,1758030691450,-400.0,0.00030684,6]
[385773333,1758030691459,-400.0,0.00030684,6]
[385773334,1758030691469,-402.2109,0.00030684,6]
[385773335,1758030691479,-400.0,0.00030684,6]
[385773336,1758030691488,-400.0,0.00030684,6]
[385773337,1758030691497,-303.7,0.00030684,6]
[385773338,1758030691507,-729.39,0.00030684,6]
[385773339,1758030691516,-421.87,0.00030684,6]
[385773340,1758030691526,-520.87,0.00030684,6]
[385773341,1758030691535,-400.0,0.00030684,6]
[385773342,1758030691545,-400.0,0.00030684,6]
[385773343,1758030691554,-612.42,0.00030684,6]
[385773344,1758030691563,-619.42,0.00030684,6]
[385773345,1758030691573,-400.0,0.00030684,6]
[385773346,1758030691583,-400.0,0.00030684,6]
[385773347,1758030691592,-400.0,0.00030684,6]
[385773348,1758030691603,-561.05,0.00030684,6]
[385773349,1758030691617,-400.0,0.00030684,6]
[385773350,1758030691627,-557.5,0.00030684,6]
[385773351,1758030691637,-400.0,0.00030684,6]
[385773352,1758030691647,-1338.22,0.00030684,6]
[385773353,1758030691656,-400.0,0.00030684,6]
[385773354,1758030691667,-400.0,0.00030684,6]
[385773355,1758030691676,-719.17,0.00030684,6]
[385773356,1758030691685,-494.57,0.00030684,6]
[385773357,1758030691695,-400.0,0.00030684,6]
[385773358,1758030691704,-400.0,0.00030684,6]
[385773359,1758030691714,-1260.05,0.00030684,6]
[385773360,1758030691724,-400.0,0.00030684,6]
[385773361,1758030691733,-529.87,0.00030684,6]
[385773362,1758030691743,-400.0,0.00030684,6]
[385773363,1758030691752,-400.0,0.00030684,6]
[385773364,1758030691762,-3589.84,0.00030684,6]
[385773365,1758030691772,-1349.21,0.00030684,6]
[385773366,1758030691782,-400.0,0.00030684,6]
[385773367,1758030691791,-400.0,0.00030684,6]
[385773368,1758030691801,-400.0,0.00030684,6]
[385773369,1758030691811,-402.12174843,0.00030684,6]
[385773370,1758030691821,-553.11,0.00030684,6]
[385773371,1758030691830,-400.0,0.00030684,6]
[385773372,1758030691840,-400.0,0.00030684,6]
[385773373,1758030691849,-2742.4,0.00030684,6]
[385773374,1758030691862,-400.86181813,0.00030684,6]
[385773375,1758030691871,-400.0,0.00030684,6]
[385773376,1758030691881,-731.31,0.00030684,6]
[385773377,1758030691891,-400.0,0.00030684,6]
[385773378,1758030691900,-400.0,0.00030684,6]
[385773379,1758030691910,-401.07144284,0.00030684,6]
[385773380,1758030691920,-400.0,0.00030684,6]
[385773381,1758030691929,-400.0,0.00030684,6]
[385773382,1758030691939,-400.0,0.00030684,6]
[385773383,1758030691949,-594.55,0.00030684,6]
[385773384,1758030691958,-400.0,0.00030684,6]
[385773385,1758030691968,-400.0,0.00030684,6]
[385773386,1758030691978,-401.55561737,0.00030684,6]
[385773387,1758030691990,-400.0,0.00030684,6]
[385773388,1758030692000,-1768.66,0.00030684,6]
[385773389,1758030692010,-400.0,0.00030684,6]
[385773390,1758030692019,-4088.73,0.00030684,6]
[385773391,1758030692031,-400.0,0.00030684,6]
[385773392,1758030692040,-400.0,0.00030684,6]
[385773393,1758030692050,-400.0,0.00030684,6]
[385773394,1758030692059,-669.48,0.00030684,6]
[385773395,1758030692070,-403.42268536,0.00030684,6]
[385773396,1758030692079,-526.47,0.00030684,6]
[385773397,1758030692090,-400.0,0.00030684,6]
[385773398,1758030692099,-400.0,0.00030684,6]
[385773399,1758030692111,-1018.02,0.00030684,6]
[385773400,1758030692121,-400.0,0.00030684,6]
[385773401,1758030692130,-400.0,0.00030684,6]
[385773402,1758030692140,-400.0,0.00030684,6]
[385773403,1758030692149,-400.0,0.00030684,6]
[385773404,1758030692159,-400.0,0.00030684,6]
[385773405,1758030692168,-402.95372375,0.00030684,6]
[385773406,1758030692179,-1194.2,0.00030684,6]
[385773407,1758030692189,-400.0,0.00030684,6]
[385773408,1758030692199,-420.22,0.00030684,6]
[385773409,1758030692209,-400.0,0.00030684,6]
[385773410,1758030692219,-400.0,0.00030684,6]
[385773411,1758030692228,-400.0,0.00030684,6]
[385773412,1758030692240,-400.0,0.00030684,6]
[385773413,1758030692249,-400.0,0.00030684,6]
[385773414,1758030692260,-400.0,0.00030684,6]
[385773415,1758030692270,-750.22,0.00030684,6]
[385773416,1758030692280,-4951.42,0.00030684,6]
[385773417,1758030692290,-818.06,0.00030684,6]
[385773418,1758030692299,-400.0,0.00030684,6]
[385773419,1758030692309,-400.0,0.00030684,6]
[385773420,1758030692319,-622.64,0.00030684,6]
[385773421,1758030692328,-400.0,0.00030684,6]
[385773422,1758030692338,-400.0,0.00030684,6]
[385773423,1758030692348,-406.15,0.00030684,6]
[385773424,1758030692360,-413.17,0.00030684,6]
[385773425,1758030692370,-400.0,0.00030684,6]
[385773426,1758030692380,-400.0,0.00030684,6]
[385773427,1758030692390,-797.13,0.00030684,6]
[385773428,1758030692400,-1049.04,0.00030684,6]
[385773429,1758030692410,-400.0,0.00030684,6]
[385773430,1758030692420,-400.0,0.00030684,6]
[385773431,1758030692430,-2213.32,0.00030684,6]
[385773432,1758030692440,-400.0,0.00030684,6]
[385773433,1758030692450,-400.0,0.00030684,6]
[385773434,1758030692459,-797.31,0.00030684,6]
[385773435,1758030692470,-1283.89,0.00030684,6]
[385773436,1758030692479,-1060.24,0.00030684,6]
[385773437,1758030692489,-400.0,0.00030684,6]
[385773438,1758030692498,-885.79,0.00030684,6]
[385773439,1758030692508,-400.0,0.00030684,6]
[385773440,1758030692518,-400.0,0.00030684,6]
[385773441,1758030692527,-400.0,0.00030684,6]
[385773442,1758030692537,-400.0,0.00030684,6]
[385773443,1758030692547,-2811.76,0.00030684,6]
[385773444,1758030692556,-479.77,0.00030684,6]
[385773445,1758030692566,-400.0,0.00030684,6]
[385773446,1758030692576,-441.92150095,0.00030684,6]
[385773447,1758030692586,-400.0,0.00030684,6]
[385773448,1758030692596,-400.0,0.00030684,6]
[385773449,1758030692606,-400.0,0.00030684,6]
[385773450,1758030692619,-519.45562809,0.00030684,6]
[385773451,1758030692629,-400.0,0.00030684,6]
[385773452,1758030692639,-400.0,0.00030684,6]
[385773453,1758030692650,-2326.96,0.00030684,6]
[385773454,1758030692660,-400.0,0.00030684,6]
[385773455,1758030692670,-402.34445884,0.00030684,6]
[385773456,1758030692681,-943.91,0.00030684,6]
[385773457,1758030692691,-1000.0,0.00030684,6]
[385773458,1758030692701,-802.57,0.00030684,6]
[385773459,1758030692711,-400.0,0.00030684,6]
[385773460,1758030692721,-400.0,0.00030684,6]
[385773461,1758030692731,-400.0,0.00030684,6]
[385773462,1758030692741,-400.0,0.00030684,6]
[385773463,1758030692750,-401.99852746,0.00030684,6]
[385773464,1758030692761,-438.8,0.00030684,6]
[385773465,1758030692771,-4333.17,0.00030684,6]
[385773466,1758030692781,-407.07723966,0.00030684,6]
[385773467,1758030692791,-616.09,0.00030684,6]
[385773468,1758030692802,-695.41,0.00030684,6]
[385773469,1758030692812,-737.81,0.00030684,6]
[385773470,1758030692822,-400.0,0.00030684,6]
[385773471,1758030692832,-400.0,0.00030684,6]
[385773472,1758030692842,-400.0,0.00030684,6]
[385773473,1758030692852,-400.0,0.00030684,6]
[385773474,1758030692865,-400.0,0.00030684,6]
[385773475,1758030692876,-721.46,0.00030684,6]
[385773476,1758030692887,-400.0,0.00030684,6]
[385773477,1758030692897,-400.0,0.00030684,6]
[385773478,1758030692908,-400.0,0.00030684,6]
[385773479,1758030692919,-400.0,0.00030684,6]
[385773480,1758030692929,-385.32310788,0.00030684,6]
[385773481,1758030693089,-676.90535563,0.00027168,2]
[385773482,1758030693100,-14.67689212,0.00030684,6]
[385773483,1758030693112,-239.17529622,0.00030684,6]
[385773484,1758030693710,-241.0185242,0.00021957,2]
[385773485,1758030693721,-717.23163214,0.00027286,2]
[385773486,1758030693731,-757.55790865,0.00027403,2]
[385773487,1758030693741,-161.52,0.00027425,30]
[385773488,1758030693751,-366.62193501,0.00027521,2]
[385773489,1758030693801,-431.26225014,0.00027521,2]
[385773490,1758030693811,-838.21046166,0.00027638,2]
[385773491,1758030694117,-878.53673816,0.00027755,2]
[385773492,1758030694128,-918.86301467,0.00027873,2]
[385773493,1758030694138,-959.18929118,0.0002799,2]
[385773494,1758030694149,-1113.82,0.00030136,6]
[385773495,1758030694158,-706.23,0.00030136,6]
[385773496,1758030694168,-637.95,0.00030136,6]
[385773497,1758030694179,-400.0,0.00030136,6]
[385773498,1758030694189,-773.14,0.00030136,6]
[385773499,1758030694199,-400.0,0.00030136,6]
[385773500,1758030694209,-1113.82,0.0003041,6]
[385773501,1758030694218,-706.23,0.0003041,6]
[385773502,1758030694228,-400.0,0.0003041,6]
[385773503,1758030694238,-637.95,0.0003041,6]
[385773504,1758030694247,-773.14,0.0003041,6]
[385773505,1758030694257,-160.82470378,0.00030684,6]
[385773506,1758030694267,-415.67,0.00030684,6]
[385773507,1758030694277,-400.0,0.00030684,6]
[385773508,1758030694287,-400.0,0.00030684,6]
[385773509,1758030694296,-400.0,0.00030684,6]
[385773510,1758030694306,-400.0,0.00030684,6]
[385773511,1758030694316,-400.0,0.00030684,6]
[385773512,1758030694325,-400.0,0.00030684,6]
[385773513,1758030694335,-3014.3,0.00030684,6]
[385773514,1758030694344,-400.0,0.00030684,6]
[385773515,1758030694354,-400.0,0.00030684,6]
[385773516,1758030694367,-5291.0,0.00030684,6]
[385773517,1758030694377,-400.0,0.00030684,6]
[385773518,1758030694387,-400.0,0.00030684,6]
[385773519,1758030694396,-764.66,0.00030684,6]
[385773520,1758030694406,-1037.28,0.00030684,6]
[385773521,1758030694416,-404.92135461,0.00030684,6]
[385773522,1758030694426,-1489.86,0.00030684,6]
[385773523,1758030694436,-400.0,0.00030684,6]
[385773524,1758030694446,-559.37,0.00030684,6]
[385773525,1758030694456,-742.69,0.00030684,6]
[385773526,1758030694466,-302.73058624,0.00030684,6]
[385773527,1758030694476,-400.0,0.00030684,6]
[385773528,1758030694486,-400.0,0.00030684,6]
[385773529,1758030694496,-1210.76,0.00030684,6]
[385773530,1758030694506,-400.0,0.00030684,6]
[385773531,1758030694516,-400.0,0.00030684,6]
[385773532,1758030694525,-400.0,0.00030684,6]
[385773533,1758030694535,-400.0,0.00030684,6]
[385773534,1758030694546,-400.0,0.00030684,6]
[385773535,1758030694556,-400.0,0.00030684,6]
[385773536,1758030694566,-1041.41,0.00030684,6]
[385773537,1758030694576,-188.53170065,0.00030684,6]
[385773538,1758030694586,-409.28528489,0.00030684,6]
[385773539,1758030694596,-400.0,0.00030684,6]
[385773540,1758030694606,-400.0,0.00030684,6]
[385773541,1758030694620,-402.22536391,0.00030684,6]
[385773542,1758030694630,-400.0,0.00030684,6]
[385773543,1758030694640,-616.13,0.00030684,6]
[385773544,1758030694650,-400.0,0.00030684,6]
[385773545,1758030694660,-400.0,0.00030684,6]
[385773546,1758030694670,-533.62,0.00030684,6]
[385773547,1758030694680,-400.0,0.00030684,6]
[385773548,1758030694690,-400.0,0.00030684,6]
[385773549,1758030694699,-526.06,0.00030684,6]
[385773550,1758030694709,-400.0,0.00030684,6]
[385773551,1758030694719,-708.1,0.00030684,6]
[385773552,1758030694732,-400.0,0.00030684,6]
[385773553,1758030694741,-744.62,0.00030684,6]
[385773554,1758030694749,-400.0,0.00030684,6]
[385773555,1758030694758,-400.0,0.00030684,6]
[385773556,1758030694768,-400.0,0.00030684,6]
[385773557,1758030694777,-552.08,0.00030684,6]
[385773558,1758030694786,-400.0,0.00030684,6]
[385773559,1758030694795,-405.93,0.00030684,6]
[385773560,1758030694806,-400.0,0.00030684,6]
[385773561,1758030694816,-654.15,0.00030684,6]
[385773562,1758030694827,-223.00251572,0.00030684,6]
[385773563,1758030694836,-544.51,0.00030684,6]
[385773564,1758030694846,-400.0,0.00030684,6]
[385773565,1758030694855,-407.92685944,0.00030684,6]
[385773566,1758030694868,-400.0,0.00030684,6]
[385773567,1758030694878,-753.49,0.00030684,6]
[385773568,1758030694888,-673.54,0.00030684,6]
[385773569,1758030694897,-636.0,0.00030684,6]
[385773570,1758030694907,-400.0,0.00030684,6]
[385773571,1758030694917,-400.0,0.00030684,6]
[385773572,1758030694927,-400.0,0.00030684,6]
[385773573,1758030694936,-1275.62,0.00030684,6]
[385773574,1758030694946,-400.0,0.00030684,6]
[385773575,1758030694956,-1115.63,0.00030684,6]
[385773576,1758030694966,-455.68013861,0.00030684,6]
[385773577,1758030694976,-400.0,0.00030684,6]
[385773578,1758030694989,-400.0,0.00030684,6]
[385773579,1758030694999,-400.0,0.00030684,6]
[385773580,1758030695009,-400.0,0.00030684,6]
[385773581,1758030695018,-400.0,0.00030684,6]
[385773582,1758030695028,-400.0,0.00030684,6]
[385773583,1758030695038,-400.0,0.00030684,6]
[385773584,1758030695048,-400.0,0.00030684,6]
[385773585,1758030695057,-403.59516434,0.00030684,6]
[385773586,1758030695067,-500.0,0.00030684,6]
[385773587,1758030695079,-400.0,0.00030684,6]
[385773588,1758030695088,-2737.65,0.00030684,6]
[385773589,1758030695099,-979.58,0.00030684,6]
[385773590,1758030695108,-972.51,0.00030684,6]